[Event "POL-chT 2nd League Juniors 2020"]
[Site "Sypniewo"]
[Date "2020.10.24"]
[Round "2.5"]
[White "Lascar, Maria Elena"]
[Black "Zalucka, Emilia"]
[Result "1/2-1/2"]
[ECO "C54"]
[WhiteElo "1552"]
[BlackElo "1524"]
[Annotator "NA RC"]
[PlyCount "139"]
[EventDate "2020.10.23"]
[EventType "team-tourn"]
[EventCountry "POL"]
[SourceTitle "playchess.com"]
[Source "ChessBase"]
[SourceQuality "1"]
[TimeControl "5400+30"]

1. e4 {[%emt 0:00:00]} e5 {[%emt 0:00:00]} 2. Nf3 {[%emt 0:00:00]} Nc6 {[%emt 0:00:00]} 3. Bc4 {[%emt 0:00:11]} Bc5 {[%emt 0:00:00]} 4. c3 {[%emt 0:00:18]} Nf6 {[%emt 0:00:00]} 5. d4 {[%emt 0:00:12]} exd4 {[%emt 0:00:00]} 6. e5 {[%emt 0:00:08]} d5 {[%emt 0:00:20]} 7. Bb5 {[%emt 0:00:16]} Ne4 {[%emt 0:00:24]} 8. cxd4 {[%emt 0:00:12]} Bb6 {[%emt 0:00:07]} 9. h3 {[%emt 0:00:23]} Bd7 {[%emt 0:01:13]} 10. Ba4 {[%emt 0:05:32]} Ba5+ {[%emt 0:06:46]} 11. Bd2 {[%emt 0:03:23]} Nxd2 {[%emt 0:02:19]} 12. Nbxd2 {[%emt 0:01:59]} Bxd2+ {[%emt 0:01:02]} 13. Qxd2 {[%emt 0:01:46]} Nxe5 {[%emt 0:05:08]} 14. Nxe5 {[%emt 0:04:01]} Bxa4 {[%emt 0:00:20]} 15. Qb4 {[%emt 0:02:14]} Bc6 {[%emt 0:04:40]} 16. Rc1 {[%emt 0:17:55]} a5 {[%emt 0:06:25]} 17. Qc5 {[%emt 0:04:18]} Qe7 {[%emt 0:01:22]} 18. Qxe7+ {[%emt 0:12:53]} Kxe7 {[%emt 0:00:08]} 19. Nxc6+ {[%emt 0:05:02]} bxc6 {[%emt 0:00:06]} 20. Rxc6 {[%emt 0:00:31]} Kd7 {[%emt 0:00:05]} 21. Rc5 {[%emt 0:01:25]} c6 {[%emt 0:00:50]} 22. Kd2 {[%emt 0:01:57]} Rhb8 {[%emt 0:01:38]} 23. Rb1 {[%emt 0:07:41]} Rb4 {[%emt 0:15:02]} 24. Kd3 {[%emt 0:04:12]} Re8 {[%emt 0:29:02]} 25. f3 {[%emt 0:01:56]} Rb5 {[%emt 0:08:02]} 26. Rxb5 {[%emt 0:01:07]} cxb5 {[%emt 0:00:05]} 27. Rc1 {[%emt 0:00:27]} Rc8 {[%emt 0:00:24]} 28. Rc5 {[%emt 0:03:11]} Rxc5 {[%emt 0:06:20]} 29. dxc5 {[%emt 0:00:02]} b4 {[%emt 0:00:58]} 30. b3 {[%emt 0:03:01]} g5 {[%emt 0:04:11]} 31. g3 {[%emt 0:00:34]} f5 {[%emt 0:04:53]} 32. Ke3 {[%emt 0:02:07]} Kc7 {[%emt 0:00:39]} 33. h4 {[%emt 0:02:13]} f4+ {[%emt 0:03:04]} 34. gxf4 {[%emt 0:00:27]} gxh4 {[%emt 0:00:04]} 35. f5 {[%emt 0:00:20]} h3 {[%emt 0:00:17]} 36. Kf2 {[%emt 0:00:21]} d4 {[%emt 0:00:41]} 37. f6 {[%emt 0:00:14]} h2 {[%emt 0:00:11]} 38. Kg2 {[%emt 0:00:16]} d3 {[%emt 0:00:10]} 39. f7 {[%emt 0:00:05]} d2 {[%emt 0:00:04]} 40. f8=Q {[%emt 0:00:17]} h1=Q+ {[%emt 0:00:53]} 41. Kxh1 {[%emt 0:00:07]} d1=Q+ {[%emt 0:00:08]} 42. Kg2 {[%emt 0:05:18]} Qd2+ {[%emt 0:00:57]} 43. Kh3 {[%emt 0:01:27]} Qd7+ {[%emt 0:01:08]} 44. Kg3 {[%emt 0:00:50]} Kc6 {[%emt 0:00:53]} 45. Qa8+ {[%emt 0:04:06]} Kb5 {[%emt 0:00:42]} 46. Qb8+ {[%emt 0:02:00]} Kxc5 {[%emt 0:00:40]} 47. Qe5+ {[%emt 0:00:44]} Kb6 {[%emt 0:00:13]} 48. Qe3+ {[%emt 0:00:33]} Kb7 {[%emt 0:00:18]} 49. Qe4+ {[%emt 0:00:31]} Kb8 {[%emt 0:00:33]} 50. Kh4 {[%emt 0:00:29]} Qd8+ {[%emt 0:00:51]} 51. Kh5 {[%emt 0:00:35]} Qd2 {[%emt 0:00:33]} 52. Qe5+ {[%emt 0:02:58]} Kb7 {[%emt 0:00:23]} 53. Qb5+ {[%emt 0:01:45]} Kc8 {[%emt 0:00:22]} 54. Qxa5 {[%emt 0:01:30]} Qf4 {[%emt 0:00:34]} 55. Qa8+ {[%emt 0:00:37]} Kd7 {[%emt 0:00:36]} 56. Qb7+ {[%emt 0:00:18]} Ke6 {[%emt 0:00:32]} 57. Qc6+ {[%emt 0:00:44]} Kf7 {[%emt 0:00:33]} 58. Qd5+ {[%emt 0:00:35]} Kf6 {[%emt 0:00:29]} 59. Qd8+ {[%emt 0:00:35]} Kf5 {[%emt 0:00:29]} 60. Qd7+ {[%emt 0:00:32]} Kf6 {[%emt 0:00:31]} 61. Qd8+ {[%emt 0:00:26]} Kg7 {[%emt 0:00:32]} 62. Qd7+ {[%emt 0:00:36]} Qf7+ {[%emt 0:00:28]} 63. Qxf7+ {[%emt 0:00:07]} Kxf7 {[%emt 0:00:02]} 64. f4 {[%emt 0:00:34]} Kf6 65. Kh6 Kf5 66. Kxh7 Kxf4 67. Kg6 Ke4 68. Kf6 Kd3 69. Ke5 Kc2 70. Kd4 1/2-1/2

[Event "POL-chT 2nd League Juniors 2020"]
[Site "Sypniewo"]
[Date "2020.10.24"]
[Round "2.5"]
[White "Miarecka, Natalia"]
[Black "Lach, Alicja"]
[Result "1-0"]
[ECO "B30"]
[WhiteElo "1289"]
[BlackElo "1161"]
[Annotator "NA RC"]
[PlyCount "119"]
[EventDate "2020.10.23"]
[EventType "team-tourn"]
[EventCountry "POL"]
[SourceTitle "playchess.com"]
[Source "ChessBase"]
[SourceQuality "1"]
[TimeControl "5400+30"]

1. e4 c5 {[%emt 0:00:00]} 2. Nf3 {[%emt 0:00:00]} Nc6 {[%emt 0:00:00]} 3. c3 {[%emt 0:00:00]} d5 {[%emt 0:01:16]} 4. exd5 {[%emt 0:00:03]} Qxd5 {[%emt 0:00:06]} 5. d4 {[%emt 0:00:14]} Bg4 {[%emt 0:00:20]} 6. Be2 {[%emt 0:01:56]} Nf6 {[%emt 0:00:54]} 7. Be3 {[%emt 0:01:42]} cxd4 {[%emt 0:00:16]} 8. cxd4 {[%emt 0:00:37]} e6 {[%emt 0:01:00]} 9. Nc3 {[%emt 0:01:29]} Qd7 {[%emt 0:01:44]} 10. Ne5 {[%emt 0:04:03]} Bxe2 {[%emt 0:08:36]} 11. Nxd7 {[%emt 0:00:29]} Bxd1 {[%emt 0:00:15]} 12. Nxf6+ {[%emt 0:00:08]} gxf6 {[%emt 0:00:05]} 13. Rxd1 {[%emt 0:00:09]} f5 {[%emt 0:04:26]} 14. Ke2 {[%emt 0:05:13]} Bg7 {[%emt 0:03:45]} 15. d5 {[%emt 0:05:12]} Ne5 16. Nb5 {[%emt 0:05:49]} Rd8 {[%emt 0:14:14]} 17. dxe6 {[%emt 0:05:15]} fxe6 {[%emt 0:00:34]} 18. Rxd8+ {[%emt 0:01:08]} Kxd8 {[%emt 0:00:09]} 19. Rd1+ {[%emt 0:01:10]} Ke7 {[%emt 0:00:42]} 20. Bxa7 {[%emt 0:01:07]} Rc8 {[%emt 0:03:29]} 21. Bd4 {[%emt 0:02:32]} Bf6 {[%emt 0:00:40]} 22. f4 {[%emt 0:02:45]} Ng6 {[%emt 0:02:02]} 23. Bxf6+ {[%emt 0:01:14]} Kxf6 {[%emt 0:00:12]} 24. g3 {[%emt 0:00:47]} Ra8 {[%emt 0:02:22]} 25. a3 {[%emt 0:00:34]} Ra6 {[%emt 0:02:50]} 26. Rd7 {[%emt 0:02:13]} Rb6 {[%emt 0:00:43]} 27. a4 {[%emt 0:00:20]} Ra6 {[%emt 0:03:24]} 28. b3 {[%emt 0:00:18]} Rc6 {[%emt 0:02:42]} 29. Kd2 {[%emt 0:02:16]} Ne7 {[%emt 0:01:08]} 30. Rxb7 {[%emt 0:01:47]} h5 {[%emt 0:00:09]} 31. a5 {[%emt 0:02:23]} Nd5 {[%emt 0:00:55]} 32. Nd4 {[%emt 0:03:06]} Rd6 {[%emt 0:00:37]} 33. b4 {[%emt 0:00:53]} Nxf4 {[%emt 0:01:46]} 34. gxf4 {[%emt 0:00:39]} Rxd4+ {[%emt 0:00:07]} 35. Kc3 {[%emt 0:00:12]} Rxf4 {[%emt 0:00:37]} 36. a6 {[%emt 0:01:10]} Rf1 {[%emt 0:01:33]} 37. a7 {[%emt 0:01:14]} Ra1 {[%emt 0:00:10]} 38. b5 {[%emt 0:00:33]} f4 {[%emt 0:00:59]} 39. b6 {[%emt 0:01:44]} f3 {[%emt 0:00:33]} 40. Rb8 {[%emt 0:00:05]} Ke7 {[%emt 0:01:37]} 41. a8=Q {[%emt 0:00:43]} Rxa8 {[%emt 0:00:24]} 42. Rxa8 {[%emt 0:00:04]} f2 {[%emt 0:00:08]} 43. Ra1 {[%emt 0:00:05]} Kd6 {[%emt 0:00:15]} 44. Rb1 {[%emt 0:00:10]} Kc6 {[%emt 0:00:17]} 45. Kd4 {[%emt 0:00:24]} f1=Q {[%emt 0:00:59]} 46. Rxf1 {[%emt 0:00:06]} Kxb6 {[%emt 0:00:11]} 47. Rf6 {[%emt 0:00:07]} Kb5 {[%emt 0:00:15]} 48. Rxe6 {[%emt 0:00:07]} h4 {[%emt 0:00:09]} 49. Rh6 {[%emt 0:00:06]} h3 {[%emt 0:00:14]} 50. Rxh3 {[%emt 0:00:03]} Kc6 {[%emt 0:00:04]} 51. Rg3 {[%emt 0:00:05]} Kd6 {[%emt 0:00:10]} 52. h4 {[%emt 0:00:04]} Ke6 {[%emt 0:00:08]} 53. h5 {[%emt 0:00:04]} Kf6 {[%emt 0:00:10]} 54. h6 {[%emt 0:00:06]} Ke6 {[%emt 0:00:05]} 55. h7 {[%emt 0:00:04]} Kf6 {[%emt 0:00:05]} 56. h8=Q+ {[%emt 0:00:07]} Ke6 {[%emt 0:00:08]} 57. Qe5+ {[%emt 0:00:05]} Kd7 {[%emt 0:00:11]} 58. Qf6 {[%emt 0:00:04]} Kc7 {[%emt 0:00:05]} 59. Rg7+ {[%emt 0:00:05]} Kc8 {[%emt 0:00:12]} 60. Qf8# {[%emt 0:00:08]} 1-0

[Event "POL-chT 2nd League Juniors 2020"]
[Site "Sypniewo"]
[Date "2020.10.24"]
[Round "2.6"]
[White "Mainka, Anna"]
[Black "Predkiewicz, Paulina"]
[Result "0-1"]
[ECO "C50"]
[WhiteElo "1280"]
[BlackElo "1243"]
[Annotator "NA RC"]
[PlyCount "122"]
[EventDate "2020.10.23"]
[EventType "team-tourn"]
[EventCountry "POL"]
[SourceTitle "playchess.com"]
[Source "ChessBase"]
[SourceQuality "1"]
[TimeControl "5400+30"]

1. e4 {[%emt 0:00:00]} e5 {[%emt 0:00:00]} 2. Nf3 {[%emt 0:00:00]} Nc6 {[%emt 0:00:00]} 3. Bc4 {[%emt 0:00:00]} Nf6 {[%emt 0:00:00]} 4. d3 {[%emt 0:00:00]} Bc5 {[%emt 0:00:01]} 5. c3 {[%emt 0:00:17]} d6 {[%emt 0:00:21]} 6. Bb3 {[%emt 0:00:16]} Bg4 {[%emt 0:01:09]} 7. O-O {[%emt 0:01:22]} O-O {[%emt 0:00:15]} 8. Nbd2 {[%emt 0:01:20]} Bb6 {[%emt 0:03:14]} 9. Re1 {[%emt 0:01:23]} Nd7 {[%emt 0:03:28]} 10. Nf1 {[%emt 0:01:07]} Nc5 {[%emt 0:00:49]} 11. Bc2 {[%emt 0:01:32]} Ne6 {[%emt 0:00:45]} 12. Ng3 {[%emt 0:01:14]} f5 {[%emt 0:01:34]} 13. exf5 {[%emt 0:01:27]} Bxf5 {[%emt 0:00:14]} 14. Bb3 {[%emt 0:01:10]} Qe7 {[%emt 0:01:22]} 15. Ng5 {[%emt 0:01:43]} Ncd8 {[%emt 0:06:29]} 16. d4 {[%emt 0:15:04]} Kh8 {[%emt 0:01:40]} 17. Nxf5 {[%emt 0:01:59]} Rxf5 {[%emt 0:00:21]} 18. Nxe6 {[%emt 0:00:11]} Nxe6 {[%emt 0:00:11]} 19. Bc2 {[%emt 0:00:37]} Rf6 20. Rf1 {[%emt 0:06:52]} exd4 {[%emt 0:04:02]} 21. Qd3 {[%emt 0:05:27]} g6 {[%emt 0:01:42]} 22. Qe4 {[%emt 0:02:15]} Qg7 {[%emt 0:04:10]} 23. Qh4 {[%emt 0:09:38]} Qf7 {[%emt 0:02:02]} 24. Bb3 {[%emt 0:04:14]} dxc3 {[%emt 0:00:50]} 25. bxc3 {[%emt 0:01:07]} Rxf2 {[%emt 0:06:33]} 26. Rxf2 {[%emt 0:05:25]} Rf8 {[%emt 0:00:15]} 27. Be3 {[%emt 0:01:03]} Bxe3 {[%emt 0:00:14]} 28. Raf1 {[%emt 0:00:07]} Bxf2+ {[%emt 0:01:48]} 29. Rxf2 {[%emt 0:00:15]} Qxf2+ {[%emt 0:00:06]} 30. Qxf2 {[%emt 0:00:14]} Rxf2 {[%emt 0:00:06]} 31. Kxf2 {[%emt 0:00:05]} Nc5 {[%emt 0:00:04]} 32. Bd5 {[%emt 0:01:11]} Kg7 {[%emt 0:00:45]} 33. Ke3 {[%emt 0:00:14]} Kf6 {[%emt 0:00:11]} 34. Kd4 {[%emt 0:00:20]} h6 {[%emt 0:01:11]} 35. Bf3 {[%emt 0:00:39]} h5 {[%emt 0:01:15]} 36. Bd5 {[%emt 0:00:09]} g5 {[%emt 0:00:26]} 37. Bf3 {[%emt 0:00:36]} g4 {[%emt 0:00:22]} 38. Bd1 {[%emt 0:00:23]} c6 {[%emt 0:01:05]} 39. g3 {[%emt 0:00:14]} Ne6+ {[%emt 0:00:40]} 40. Ke4 {[%emt 0:00:30]} d5+ {[%emt 0:01:35]} 41. Ke3 {[%emt 0:00:12]} Ke5 {[%emt 0:00:11]} 42. Bc2 {[%emt 0:00:19]} c5 {[%emt 0:02:03]} 43. Bg6 {[%emt 0:00:20]} Ng7 {[%emt 0:00:09]} 44. Kd3 {[%emt 0:00:24]} b6 {[%emt 0:00:36]} 45. Ke3 {[%emt 0:00:17]} Kf6 {[%emt 0:00:25]} 46. Bd3 {[%emt 0:00:26]} Ne6 {[%emt 0:00:24]} 47. a4 {[%emt 0:00:09]} Ng5 {[%emt 0:01:29]} 48. Kf4 {[%emt 0:00:13]} Nf3 {[%emt 0:01:21]} 49. Ke3 {[%emt 0:00:12]} Nxh2 {[%emt 0:00:33]} 50. Be2 {[%emt 0:00:12]} Ke5 {[%emt 0:00:08]} 51. Kf2 {[%emt 0:00:08]} Ke4 {[%emt 0:00:16]} 52. Kg2 {[%emt 0:00:07]} Nf3 {[%emt 0:00:09]} 53. Kf2 {[%emt 0:00:06]} d4 {[%emt 0:00:35]} 54. cxd4 {[%emt 0:00:07]} cxd4 {[%emt 0:00:04]} 55. Kf1 {[%emt 0:00:07]} d3 {[%emt 0:00:10]} 56. Bxf3+ {[%emt 0:00:06]} gxf3 {[%emt 0:00:12]} 57. Ke1 {[%emt 0:00:06]} Ke3 {[%emt 0:00:14]} 58. Kf1 {[%emt 0:00:04]} d2 {[%emt 0:00:09]} 59. Kg1 {[%emt 0:00:04]} d1=Q+ {[%emt 0:00:16]} 60. Kh2 {[%emt 0:00:03]} Qf1 {[%emt 0:00:28]} 61. g4 {[%emt 0:00:03]} Qg2# 0-1

[Event "POL-chT 2nd League Juniors 2020"]
[Site "Sypniewo"]
[Date "2020.10.24"]
[Round "2.8"]
[White "Kubica, Dominik"]
[Black "Szuber, Dawid"]
[Result "0-1"]
[ECO "B20"]
[WhiteElo "1577"]
[BlackElo "1496"]
[Annotator "NA RC"]
[PlyCount "92"]
[EventDate "2020.10.23"]
[EventType "team-tourn"]
[EventCountry "POL"]
[SourceTitle "playchess.com"]
[Source "ChessBase"]
[SourceQuality "1"]
[TimeControl "5400+30"]

1. e4 {[%emt 0:00:00]} c5 {[%emt 0:00:00]} 2. d4 {[%emt 0:00:00]} d5 {[%emt 0:15:44]} 3. exd5 {[%emt 0:06:11]} Qxd5 {[%emt 0:00:23]} 4. Nf3 {[%emt 0:04:07]} e6 {[%emt 0:04:17]} 5. Nc3 {[%emt 0:04:30]} Qd8 {[%emt 0:01:03]} 6. Bf4 {[%emt 0:05:27]} Nf6 {[%emt 0:04:44]} 7. Bc4 {[%emt 0:08:14]} a6 {[%emt 0:04:04]} 8. O-O {[%emt 0:13:34]} b5 {[%emt 0:01:58]} 9. Bd3 {[%emt 0:03:42]} c4 {[%emt 0:02:38]} 10. Be2 {[%emt 0:01:34]} Nc6 {[%emt 0:09:40]} 11. Re1 {[%emt 0:02:33]} Be7 {[%emt 0:00:56]} 12. a4 {[%emt 0:07:04]} b4 {[%emt 0:06:40]} 13. Nb1 {[%emt 0:03:33]} Na5 {[%emt 0:04:26]} 14. Ne5 {[%emt 0:03:04]} Nd5 {[%emt 0:03:17]} 15. Bg3 {[%emt 0:07:41]} c3 {[%emt 0:07:37]} 16. bxc3 {[%emt 0:01:26]} bxc3 {[%emt 0:00:09]} 17. Qd3 {[%emt 0:02:41]} Bb4 {[%emt 0:02:34]} 18. Na3 {[%emt 0:05:57]} Bb7 {[%emt 0:04:07]} 19. Nac4 {[%emt 0:07:34]} Nxc4 {[%emt 0:00:34]} 20. Qxc4 {[%emt 0:00:47]} Rc8 {[%emt 0:02:09]} 21. Qd3 {[%emt 0:00:28]} O-O {[%emt 0:01:11]} 22. Bh5 {[%emt 0:03:29]} Nf6 {[%emt 0:02:43]} 23. Bh4 {[%emt 0:02:04]} Be7 {[%emt 0:02:27]} 24. Bxf7+ {[%emt 0:02:24]} Rxf7 {[%emt 0:01:26]} 25. Nxf7 {[%emt 0:00:08]} Kxf7 {[%emt 0:00:07]} 26. Bxf6 {[%emt 0:02:16]} Bxf6 {[%emt 0:01:15]} 27. Qxh7 {[%emt 0:00:47]} Qd5 {[%emt 0:01:36]} 28. Qh3 {[%emt 0:01:05]} Rc4 {[%emt 0:02:28]} 29. Rab1 {[%emt 0:00:55]} Rxd4 {[%emt 0:02:05]} 30. f3 {[%emt 0:01:08]} Bc6 {[%emt 0:03:40]} 31. Qg3 {[%emt 0:00:35]} e5 {[%emt 0:01:00]} 32. Qh3 {[%emt 0:00:17]} e4 {[%emt 0:01:31]} 33. fxe4 {[%emt 0:00:32]} Rxe4 {[%emt 0:00:01]} 34. Rf1 {[%emt 0:00:39]} Re2 {[%emt 0:04:09]} 35. Rxf6+ {[%emt 0:00:25]} gxf6 {[%emt 0:01:22]} 36. Qh7+ {[%emt 0:00:10]} Ke6 {[%emt 0:00:22]} 37. Qg8+ {[%emt 0:00:39]} Ke7 {[%emt 0:02:16]} 38. Qh7+ {[%emt 0:00:41]} Kd6 {[%emt 0:01:11]} 39. Qd3 {[%emt 0:00:25]} Qxd3 {[%emt 0:00:18]} 40. cxd3 {[%emt 0:00:05]} Rb2 {[%emt 0:00:40]} 41. Rc1 {[%emt 0:00:10]} c2 {[%emt 0:00:26]} 42. Kf2 {[%emt 0:00:06]} Bxa4 {[%emt 0:00:18]} 43. Ke3 {[%emt 0:00:06]} Rb1 {[%emt 0:00:09]} 44. Kd2 {[%emt 0:00:07]} Rxc1 {[%emt 0:00:04]} 45. Kxc1 {[%emt 0:00:04]} Ke5 {[%emt 0:00:57]} 46. Kd2 {[%emt 0:00:06]} Bb3 {[%emt 0:00:41]} 0-1

[Event "POL-chT 2nd League Juniors 2020"]
[Site "Sypniewo"]
[Date "2020.10.24"]
[Round "2.9"]
[White "Bochenek, Ryszard"]
[Black "Zaborski, Igor"]
[Result "1-0"]
[ECO "B07"]
[WhiteElo "1445"]
[BlackElo "1612"]
[Annotator "NA RC"]
[PlyCount "57"]
[EventDate "2020.10.23"]
[EventType "team-tourn"]
[EventCountry "POL"]
[SourceTitle "playchess.com"]
[Source "ChessBase"]
[SourceQuality "1"]
[TimeControl "5400+30"]

1. e4 {[%emt 0:00:00]} d6 {[%emt 0:00:00]} 2. d4 {[%emt 0:00:07]} Nf6 {[%emt 0:00:00]} 3. Nc3 {[%emt 0:00:20]} g6 {[%emt 0:00:13]} 4. Bg5 {[%emt 0:00:59]} Bg7 {[%emt 0:00:18]} 5. Qd2 {[%emt 0:03:11]} c6 {[%emt 0:01:32]} 6. Bd3 {[%emt 0:02:55]} h6 {[%emt 0:01:59]} 7. Be3 {[%emt 0:08:15]} Nbd7 {[%emt 0:00:40]} 8. f3 {[%emt 0:01:07]} Qb6 {[%emt 0:01:27]} 9. O-O-O {[%emt 0:05:02]} c5 {[%emt 0:01:17]} 10. Nge2 {[%emt 0:05:22]} a6 {[%emt 0:04:48]} 11. g4 {[%emt 0:06:24]} Qc7 {[%emt 0:01:39]} 12. Ng3 {[%emt 0:02:46]} b5 {[%emt 0:02:06]} 13. h4 {[%emt 0:02:19]} b4 {[%emt 0:01:45]} 14. Nb1 {[%emt 0:02:50]} c4 {[%emt 0:03:50]} 15. Be2 {[%emt 0:00:34]} Rb8 {[%emt 0:08:25]} 16. c3 {[%emt 0:07:15]} a5 {[%emt 0:03:32]} 17. h5 {[%emt 0:06:29]} bxc3 {[%emt 0:00:43]} 18. Nxc3 {[%emt 0:00:18]} e5 {[%emt 0:06:28]} 19. d5 {[%emt 0:07:04]} Nc5 {[%emt 0:01:43]} 20. hxg6 {[%emt 0:02:30]} fxg6 {[%emt 0:02:08]} 21. Bxh6 {[%emt 0:01:25]} Bxh6 {[%emt 0:00:34]} 22. Rxh6 {[%emt 0:00:12]} Rxh6 {[%emt 0:00:07]} 23. Qxh6 {[%emt 0:00:05]} Qb6 {[%emt 0:00:39]} 24. Qxg6+ {[%emt 0:04:13]} Ke7 {[%emt 0:00:14]} 25. Rd2 {[%emt 0:00:26]} Nd3+ {[%emt 0:01:55]} 26. Bxd3 {[%emt 0:00:36]} cxd3 {[%emt 0:00:17]} 27. Qg7+ {[%emt 0:06:19]} Ke8 {[%emt 0:01:31]} 28. Qxf6 {[%emt 0:02:19]} Qg1+ {[%emt 0:00:29]} 29. Nd1 {[%emt 0:00:31]} 1-0

[Event "POL-chT 2nd League Juniors 2020"]
[Site "Sypniewo"]
[Date "2020.10.24"]
[Round "2.9"]
[White "Pawlowski, Kamil"]
[Black "Jendrowiak, Maciej"]
[Result "0-1"]
[ECO "A25"]
[WhiteElo "1162"]
[BlackElo "1382"]
[Annotator "NA RC"]
[PlyCount "116"]
[EventDate "2020.10.23"]
[EventType "team-tourn"]
[EventCountry "POL"]
[SourceTitle "playchess.com"]
[Source "ChessBase"]
[SourceQuality "1"]
[TimeControl "5400+30"]

1. c4 {[%emt 0:00:00]} e5 {[%emt 0:00:00]} 2. Nc3 {[%emt 0:00:00]} Nc6 {[%emt 0:00:19]} 3. e3 {[%emt 0:00:26]} g6 {[%emt 0:02:53]} 4. Nge2 {[%emt 0:00:32]} Bg7 {[%emt 0:02:28]} 5. d4 {[%emt 0:02:00]} d6 {[%emt 0:00:55]} 6. g3 {[%emt 0:05:58]} f5 {[%emt 0:03:43]} 7. Bg2 {[%emt 0:03:16]} Nf6 {[%emt 0:01:22]} 8. Bxc6+ {[%emt 0:01:38]} bxc6 {[%emt 0:00:39]} 9. dxe5 {[%emt 0:00:21]} dxe5 {[%emt 0:00:05]} 10. Qxd8+ {[%emt 0:00:18]} Kxd8 {[%emt 0:00:11]} 11. b3 {[%emt 0:03:21]} Ke7 {[%emt 0:00:34]} 12. Ba3+ {[%emt 0:00:26]} Kf7 {[%emt 0:00:07]} 13. O-O-O {[%emt 0:00:33]} Ng4 {[%emt 0:00:35]} 14. Rdf1 {[%emt 0:05:57]} Bh6 {[%emt 0:02:29]} 15. Kb1 {[%emt 0:00:41]} Be6 {[%emt 0:00:56]} 16. Na4 {[%emt 0:02:20]} Rab8 {[%emt 0:00:55]} 17. Nb2 {[%emt 0:00:20]} Rhd8 {[%emt 0:00:41]} 18. h3 {[%emt 0:02:06]} Nf6 {[%emt 0:00:14]} 19. Rd1 {[%emt 0:00:42]} Ne4 20. f3 {[%emt 0:07:01]} Nf2 {[%emt 0:01:01]} 21. Rxd8 {[%emt 0:00:17]} Rxd8 {[%emt 0:00:05]} 22. Rf1 {[%emt 0:00:45]} Bxe3 {[%emt 0:00:10]} 23. h4 {[%emt 0:06:08]} Rd2 {[%emt 0:06:53]} 24. Nc1 {[%emt 0:01:28]} f4 {[%emt 0:01:55]} 25. g4 {[%emt 0:01:19]} a5 {[%emt 0:03:25]} 26. b4 {[%emt 0:08:36]} a4 {[%emt 0:04:37]} 27. b5 {[%emt 0:07:02]} c5 {[%emt 0:01:02]} 28. Re1 {[%emt 0:05:12]} h5 {[%emt 0:01:22]} 29. gxh5 {[%emt 0:02:16]} Bf5+ {[%emt 0:00:37]} 30. Ka1 {[%emt 0:00:14]} Rc2 {[%emt 0:01:03]} 31. Nxa4 {[%emt 0:00:44]} Rxc4 {[%emt 0:00:46]} 32. b6 {[%emt 0:01:52]} cxb6 {[%emt 0:01:28]} 33. Nxb6 {[%emt 0:01:33]} Bd4+ {[%emt 0:00:12]} 34. Bb2 {[%emt 0:02:18]} Rb4 {[%emt 0:00:25]} 35. Nb3 {[%emt 0:00:30]} Bxb2+ {[%emt 0:00:19]} 36. Kxb2 {[%emt 0:01:52]} Nd3+ {[%emt 0:00:07]} 37. Kc3 {[%emt 0:00:47]} Nxe1 {[%emt 0:00:14]} 38. Nd5 {[%emt 0:02:10]} Rb8 {[%emt 0:00:43]} 39. hxg6+ {[%emt 0:00:25]} Bxg6 {[%emt 0:00:17]} 40. Nxc5 {[%emt 0:00:19]} Rc8 {[%emt 0:00:11]} 41. Kb4 {[%emt 0:00:11]} Nd3+ {[%emt 0:00:12]} 42. Nxd3 {[%emt 0:00:15]} Bxd3 {[%emt 0:00:05]} 43. Nb6 {[%emt 0:01:15]} Rb8 {[%emt 0:00:12]} 44. Kc5 {[%emt 0:00:19]} Ke6 {[%emt 0:00:08]} 45. a4 {[%emt 0:00:21]} Be2 {[%emt 0:01:01]} 46. a5 {[%emt 0:00:28]} Bxf3 {[%emt 0:00:31]} 47. a6 {[%emt 0:00:10]} Kf5 {[%emt 0:01:17]} 48. a7 {[%emt 0:00:25]} Rxb6 {[%emt 0:00:09]} 49. Kxb6 {[%emt 0:00:15]} Kg4 {[%emt 0:00:11]} 50. h5 {[%emt 0:00:19]} Kxh5 {[%emt 0:00:10]} 51. Kc5 {[%emt 0:00:05]} Kg4 {[%emt 0:00:21]} 52. Kc4 {[%emt 0:00:14]} Ba8 {[%emt 0:00:09]} 53. Kd3 {[%emt 0:00:06]} Kf3 {[%emt 0:00:03]} 54. Kd2 {[%emt 0:00:07]} Kf2 {[%emt 0:00:04]} 55. Kd1 {[%emt 0:00:06]} e4 {[%emt 0:00:05]} 56. Kd2 {[%emt 0:00:10]} e3+ {[%emt 0:00:07]} 57. Kd3 {[%emt 0:00:11]} e2 {[%emt 0:00:06]} 58. Kd4 {[%emt 0:00:03]} e1=Q {[%emt 0:00:10]} 0-1

[Event "POL-chT 2nd League Juniors 2020"]
[Site "Sypniewo"]
[Date "2020.10.24"]
[Round "2.10"]
[White "Rozek, Michal"]
[Black "Suszczynski, Dominik"]
[Result "1-0"]
[ECO "B30"]
[WhiteElo "1442"]
[BlackElo "1241"]
[Annotator "NA RC"]
[PlyCount "37"]
[EventDate "2020.10.23"]
[EventType "team-tourn"]
[EventCountry "POL"]
[SourceTitle "playchess.com"]
[Source "ChessBase"]
[SourceQuality "1"]
[TimeControl "5400+30"]

1. e4 {[%emt 0:00:00]} c5 {[%emt 0:00:00]} 2. Nf3 {[%emt 0:00:00]} Nc6 {[%emt 0:00:38]} 3. Bb5 {[%emt 0:01:01]} d6 {[%emt 0:02:20]} 4. O-O {[%emt 0:01:16]} Nf6 {[%emt 0:02:03]} 5. Re1 {[%emt 0:02:59]} Bd7 {[%emt 0:01:25]} 6. c3 {[%emt 0:04:46]} g6 {[%emt 0:07:37]} 7. d4 {[%emt 0:01:45]} cxd4 {[%emt 0:00:34]} 8. cxd4 {[%emt 0:00:29]} Bg7 {[%emt 0:02:13]} 9. Nc3 {[%emt 0:03:34]} O-O {[%emt 0:05:40]} 10. h3 {[%emt 0:06:25]} Ne8 {[%emt 0:06:49]} 11. Be3 {[%emt 0:04:47]} f5 {[%emt 0:12:31]} 12. Bc4+ {[%emt 0:04:19]} Kh8 {[%emt 0:00:36]} 13. exf5 {[%emt 0:05:38]} gxf5 {[%emt 0:01:04]} 14. Ng5 {[%emt 0:05:11]} d5 {[%emt 0:00:50]} 15. Bxd5 {[%emt 0:04:53]} Nd6 {[%emt 0:00:29]} 16. Qh5 {[%emt 0:01:40]} h6 {[%emt 0:01:07]} 17. Qg6 {[%emt 0:04:54]} hxg5 {[%emt 0:03:59]} 18. Qh5+ {[%emt 0:00:19]} Bh6 {[%emt 0:00:06]} 19. Qxh6# {[%emt 0:00:04]} 1-0